bitfinex/quotes_BTCUSD_20251215
["timestamp","ask_amount","ask_price","bid_price","bid_amount"]
[1765786507891,0.002,89764.0,89763.0,0.0001147]
[1765786508456,0.04460333,89766.0,89763.0,0.0001147]
[1765786508654,0.26840492,89766.0,89763.0,0.0001147]
[1765786508865,0.29299492,89766.0,89763.0,0.0001147]
[1765786509691,0.07019333,89766.0,89763.0,0.0001147]
[1765786509894,0.05905326,89766.0,89763.0,0.01125514]
[1765786510751,0.07019333,89766.0,89763.0,0.01125514]
[1765786511040,0.04560333,89766.0,89763.0,0.01125514]
[1765786511438,0.07019333,89766.0,89763.0,0.01125514]
[1765786512884,0.03446326,89766.0,89763.0,0.01125514]
[1765786513414,0.04560333,89766.0,89763.0,0.01125514]
[1765786514652,0.26840608,89766.0,89763.0,0.0001147]
[1765786514830,0.29299608,89766.0,89763.0,0.0001147]
[1765786515069,0.02459,89765.0,89763.0,0.0001147]
[1765786515288,0.01653,89764.0,89763.0,0.0001147]
[1765786516601,0.02767069,89764.0,89763.0,0.0001147]
[1765786517129,0.02867069,89764.0,89763.0,0.0001147]
[1765786517879,0.05326069,89764.0,89763.0,0.0001147]
[1765786519680,0.02867069,89764.0,89763.0,0.0001147]
[1765786521984,0.05326069,89764.0,89763.0,0.0001147]
[1765786525359,0.02867069,89764.0,89763.0,0.0001147]
[1765786525558,0.01214069,89764.0,89763.0,0.0001147]
[1765786525757,0.01214069,89764.0,89763.0,0.22453652]
[1765786526091,0.001,89764.0,89763.0,0.29421169]
[1765786526741,0.0176,89773.0,89771.0,0.22278735]
[1765786526959,0.0176,89773.0,89772.0,0.01113933]
[1765786527166,0.01113883,89776.0,89773.0,0.0111392]
[1765786527902,0.00901,89778.0,89775.0,0.01113895]
[1765786528093,0.02014858,89778.0,89773.0,0.0111392]
[1765786528297,0.02014858,89778.0,89772.0,0.01113933]
[1765786528298,0.01113895,89775.0,89772.0,0.01113933]
[1765786528657,0.01113871,89777.0,89773.0,0.0111392]
[1765786529054,0.01113871,89777.0,89774.0,0.01113908]
[1765786529849,0.01213871,89777.0,89774.0,0.01113908]
[1765786530056,0.001,89777.0,89774.0,0.23391871]
[1765786530272,0.01001,89778.0,89774.0,0.23391871]
[1765786530273,0.00901,89778.0,89775.0,0.01113895]
[1765786530486,0.01113871,89777.0,89774.0,0.01113908]
[1765786530684,0.01313871,89777.0,89774.0,0.01113908]
[1765786531631,0.23391551,89776.0,89772.0,0.2339252]
[1765786531825,0.01113883,89776.0,89772.0,0.2339252]
[1765786532189,0.01113895,89775.0,89772.0,0.01113933]
[1765786532726,0.01213871,89777.0,89773.0,0.0111392]
[1765786532924,0.01113871,89777.0,89773.0,0.0111392]
[1765786533130,0.001,89776.0,89773.0,0.0111392]
[1765786533530,0.01113871,89777.0,89773.0,0.0111392]
[1765786533709,0.00901,89778.0,89775.0,0.01113895]
[1765786533882,0.001,89777.0,89774.0,0.01113908]
[1765786534430,0.02405,89777.0,89774.0,0.01113908]
[1765786535157,0.02305,89777.0,89774.0,0.01113908]
[1765786535778,0.03418871,89777.0,89774.0,0.01113908]
[1765786535958,0.03518871,89777.0,89774.0,0.01113908]
[1765786536162,0.03618871,89777.0,89774.0,0.01113908]
[1765786536354,0.01113883,89776.0,89772.0,0.01113933]
[1765786536745,0.03418883,89776.0,89772.0,0.01113933]
[1765786537465,0.01113883,89776.0,89773.0,0.0111392]
[1765786538381,0.01213883,89776.0,89773.0,0.0111392]
[1765786538769,0.00901,89774.0,89770.0,0.23393064]
[1765786539324,0.00901,89774.0,89771.0,0.01113945]
[1765786540012,0.01001,89774.0,89771.0,0.01113945]
[1765786541067,0.02114908,89774.0,89771.0,0.01113945]
[1765786541278,0.00901,89774.0,89771.0,0.01113945]
[1765786541478,0.01001,89774.0,89771.0,0.01113945]
[1765786545498,0.01001,89774.0,89770.0,0.01113957]
[1765786545701,0.02114908,89774.0,89771.0,0.01113945]
[1765786546491,0.0111392,89773.0,89770.0,0.01113957]
[1765786546693,0.0111392,89773.0,89769.0,0.0111397]
[1765786546910,0.0111392,89773.0,89770.0,0.01113957]
[1765786547521,0.01113933,89772.0,89768.0,0.01113982]
[1765786547733,0.0267097,89769.0,89766.0,0.03001244]
[1765786547946,0.01114007,89766.0,89763.0,0.00172757]
[1765786548759,0.01114007,89766.0,89763.0,0.01286801]
[1765786548960,0.23393482,89769.0,89763.0,0.01286801]
[1765786549543,0.001,89766.0,89764.0,0.01114032]
[1765786550083,0.001,89766.0,89765.0,0.22280398]
[1765786550298,0.001,89766.0,89765.0,0.23901398]
[1765786550461,0.001,89766.0,89765.0,0.26463685]
[1765786550674,0.34248796,89783.0,89777.0,0.2227742]
[1765786550866,0.35149796,89783.0,89777.0,0.2227742]
[1765786551073,0.00901,89784.0,89782.0,0.2227618]
[1765786551479,0.01113734,89788.0,89785.0,0.01113771]
[1765786551678,0.0176,89791.0,89786.0,0.23388946]
[1765786551882,0.0111361,89798.0,89795.0,0.01113647]
[1765786552469,0.23385827,89798.0,89793.0,0.23386915]
[1765786552664,0.01113622,89797.0,89793.0,0.23386915]
[1765786552903,0.01113647,89795.0,89792.0,0.01113684]
[1765786554576,0.01113622,89797.0,89793.0,0.01113672]
[1765786554936,0.001,89795.0,89793.0,0.01113672]
[1765786555480,0.01113622,89797.0,89794.0,0.0111366]
[1765786555680,0.01213622,89797.0,89794.0,0.0111366]
[1765786555904,0.001,89797.0,89794.0,0.23386771]
[1765786556080,0.001,89797.0,89794.0,0.0111366]
[1765786556437,0.001,89797.0,89795.0,0.22272955]
[1765786556861,0.001,89797.0,89794.0,0.0111366]
[1765786557070,0.001,89797.0,89793.0,0.01113672]
[1765786557071,0.01113622,89797.0,89793.0,0.01113672]
[1765786557373,0.001,89795.0,89793.0,0.01113672]
[1765786557583,0.001,89795.0,89792.0,0.01113684]
[1765786557815,0.0111361,89798.0,89794.0,0.0111366]
[1765786558247,0.001,89797.0,89795.0,0.23386602]
[1765786558659,0.03583573,89801.0,89798.0,0.0111361]
[1765786560189,0.0247,89801.0,89798.0,0.0111361]
[1765786560653,0.0267,89801.0,89798.0,0.0111361]
[1765786561119,0.0277,89801.0,89798.0,0.23385631]
[1765786561302,0.01113635,89796.0,89793.0,0.01113672]
[1765786561503,0.02497,89794.0,89793.0,0.23387123]
[1765786561986,0.00901,89794.0,89793.0,0.23387123]
[1765786562560,0.001,89801.0,89799.0,0.22271962]
[1765786563378,0.00901,89804.0,89801.0,0.23384828]
[1765786563577,0.02014536,89804.0,89801.0,0.01113573]
[1765786563786,0.04484536,89804.0,89801.0,0.01113573]
[1765786564006,0.01596,89802.0,89801.0,0.01113573]
[1765786564311,0.001,89801.0,89799.0,0.01113598]
[1765786564537,0.001,89801.0,89799.0,0.2338549]
[1765786564658,0.02014536,89804.0,89799.0,0.2338549]
[1765786564659,0.00901,89804.0,89801.0,0.23384954]
[1765786564865,0.01001,89804.0,89801.0,0.23384954]
[1765786565192,0.00901,89804.0,89801.0,0.23384954]
[1765786565394,0.002,89802.0,89801.0,0.23384954]
[1765786565808,0.002,89802.0,89801.0,0.29264241]
[1765786567056,0.01113288,89824.0,89821.0,0.01113325]
[1765786567373,0.011133,89823.0,89819.0,0.0111335]
[1765786567935,0.01113288,89824.0,89821.0,0.01113325]
[1765786568515,0.02014275,89825.0,89821.0,0.01113325]
[1765786568880,0.001,89823.0,89821.0,0.01113325]
[1765786569332,0.001,89823.0,89820.0,0.01113337]
[1765786569874,0.012133,89823.0,89819.0,0.0111335]
[1765786570149,0.011133,89823.0,89819.0,0.0111335]
[1765786570295,0.011133,89823.0,89815.0,0.01988399]
[1765786570296,0.22266507,89821.0,89815.0,0.00875]
[1765786570496,0.02497,89816.0,89814.0,0.01113412]
[1765786571008,0.01596,89815.0,89814.0,0.01113412]
[1765786571206,0.23381933,89813.0,89806.0,0.01113511]
[1765786571417,0.01113474,89809.0,89804.0,0.01113536]
[1765786571599,0.01113461,89810.0,89807.0,0.01113498]
[1765786571792,0.00901,89812.0,89808.0,0.01113486]
[1765786572051,0.00901,89812.0,89809.0,0.01113474]
[1765786572400,0.00901,89812.0,89809.0,0.23382935]
[1765786572573,0.01113362,89818.0,89814.0,0.23381512]
[1765786573004,0.01113362,89818.0,89814.0,0.2349299]
[1765786573204,0.01113362,89818.0,89814.0,0.0112489]
[1765786574164,0.01113362,89818.0,89814.0,0.0122489]
[1765786574341,0.01113374,89817.0,89814.0,0.0122489]
[1765786574868,0.23381077,89817.0,89814.0,0.00111478]
[1765786575297,0.00901,89815.0,89814.0,0.00111478]
[1765786575475,0.02497,89815.0,89814.0,0.00111478]
[1765786575675,0.02497,89815.0,89814.0,0.00011478]
[1765786575886,0.04967,89815.0,89814.0,0.00011478]
[1765786576092,0.04967,89815.0,89814.0,0.00111478]
[1765786576295,0.04967,89815.0,89814.0,0.00011478]
[1765786576700,0.04967,89815.0,89814.0,0.00111478]
[1765786576897,0.04967,89815.0,89814.0,0.00011478]
[1765786577488,0.05067,89815.0,89814.0,0.00011478]
[1765786578554,0.12588013,89815.0,89814.0,0.00011478]
[1765786579109,0.06827,89815.0,89814.0,0.00011478]
[1765786581437,0.392418,89815.0,89814.0,0.00011478]
[1765786585000,0.918972,89815.0,89814.0,4.78e-06]
[1765786585155,0.918972,89815.0,89782.0,0.0410141]
[1765786585156,0.01113771,89785.0,89782.0,0.0410141]
[1765786585359,0.01113771,89785.0,89782.0,0.04262697]
[1765786585697,0.01113759,89786.0,89783.0,0.01113796]
[1765786585907,0.01113746,89787.0,89784.0,0.01113784]
[1765786587680,0.01643,89785.0,89783.0,0.00161287]
[1765786587938,0.01643,89784.0,89783.0,0.00161287]
[1765786588164,0.01113759,89786.0,89783.0,0.00161287]
[1765786588599,0.01113709,89790.0,89783.0,0.00161287]
[1765786588600,0.23387398,89792.0,89786.0,0.23388946]
[1765786588740,0.01113709,89790.0,89786.0,0.01113759]
[1765786589369,0.01113709,89790.0,89786.0,0.23388905]
[1765786589684,0.0111366,89794.0,89789.0,0.01113722]
[1765786589857,0.01113684,89792.0,89789.0,0.01113722]
[1765786590064,0.0111366,89794.0,89791.0,0.01113697]
[1765786590387,0.01113684,89792.0,89787.0,0.23388685]
[1765786590562,0.01113684,89792.0,89786.0,0.03845046]
[1765786590563,0.01113709,89790.0,89786.0,0.00361287]
[1765786590768,0.00901,89787.0,89786.0,0.00361287]
[1765786590968,0.02544,89787.0,89786.0,0.00361287]
[1765786591314,0.04917,89787.0,89786.0,0.001]
[1765786591797,0.01113784,89784.0,89780.0,0.01113833]
[1765786592716,0.01113784,89784.0,89781.0,0.01113821]
[1765786594781,0.01113796,89783.0,89780.0,0.01113833]
[1765786595399,0.01113784,89784.0,89780.0,0.2339049]
[1765786595647,0.01113784,89784.0,89781.0,0.001]
[1765786595850,0.01113784,89784.0,89780.0,0.2339049]
[1765786596122,0.23390023,89782.0,89780.0,0.001]
[1765786596329,0.01113809,89782.0,89780.0,0.001]
[1765786596513,0.01113784,89784.0,89780.0,0.0137512]
[1765786596710,0.01113784,89784.0,89781.0,0.01113821]
[1765786597976,0.00901,89787.0,89783.0,0.22275931]
[1765786598419,0.02014746,89787.0,89784.0,0.01113784]
[1765786598996,0.02014746,89787.0,89782.0,0.01113809]
[1765786598997,0.01113759,89786.0,89782.0,0.01113809]
[1765786599200,0.01113759,89786.0,89783.0,0.01113796]
[1765786599945,0.02014746,89787.0,89784.0,0.01113784]
[1765786600289,0.00901,89787.0,89786.0,0.22275187]
[1765786600500,0.01113722,89789.0,89786.0,0.23388946]
[1765786600747,0.0111366,89794.0,89789.0,0.23387919]
[1765786600959,0.01113635,89796.0,89793.0,0.01113672]
[1765786601339,0.01113647,89795.0,89791.0,0.01113697]
[1765786601564,0.01113647,89795.0,89791.0,0.23387637]
[1765786601892,0.01113635,89796.0,89793.0,0.01113672]
[1765786602107,0.22271354,89802.0,89795.0,0.23386577]
[1765786602303,0.01113585,89800.0,89796.0,0.01113635]
[1765786602853,0.03774548,89803.0,89798.0,0.0111361]
[1765786603516,0.0111356,89802.0,89797.0,0.01113622]
[1765786603702,0.01113585,89800.0,89796.0,0.01113635]
[1765786603910,0.22273203,89794.0,89793.0,0.00161287]
[1765786604112,0.22273203,89794.0,89786.0,0.22275187]
[1765786604113,0.01113697,89791.0,89786.0,0.22275187]
[1765786604486,0.01113697,89791.0,89787.0,0.01113746]
[1765786604894,0.01113697,89791.0,89788.0,0.01113734]
[1765786605098,0.23386863,89794.0,89788.0,0.01113734]
[1765786605099,0.001,89794.0,89792.0,0.22273486]
[1765786605292,0.001,89794.0,89793.0,0.01507]
[1765786605555,0.01113598,89799.0,89795.0,0.01113647]
[1765786605716,0.01113585,89800.0,89797.0,0.01113622]
[1765786605894,0.01113573,89801.0,89797.0,0.01113622]
[1765786606093,0.03774548,89803.0,89800.0,0.01113585]
[1765786606506,0.2226881,89812.0,89806.0,0.01113511]
[1765786606507,0.03345009,89810.0,89806.0,0.01113511]
[1765786606688,0.03345009,89810.0,89807.0,0.23383476]
[1765786606929,0.01113449,89811.0,89807.0,0.23383476]
[1765786607138,0.01113449,89811.0,89808.0,0.01113486]
[1765786607758,0.01113461,89810.0,89807.0,0.01113498]
[1765786608300,0.01413449,89811.0,89808.0,0.01113486]
[1765786608501,0.01113461,89810.0,89807.0,0.01113498]
[1765786609001,0.01213461,89810.0,89807.0,0.01113498]
[1765786609801,0.001,89810.0,89807.0,0.2338347]
[1765786610380,0.01313461,89810.0,89807.0,0.01113498]
[1765786611348,0.01113474,89809.0,89806.0,0.01274798]
[1765786611499,0.02476,89807.0,89805.0,0.01113523]
[1765786611704,0.01575,89806.0,89805.0,0.01113523]
[1765786612731,0.00901,89807.0,89805.0,0.01113523]
[1765786612913,0.00901,89807.0,89805.0,0.23383891]
[1765786613316,0.00901,89807.0,89805.0,0.01113523]
[1765786613629,0.01001,89807.0,89805.0,0.01113523]
[1765786614324,0.01575,89806.0,89803.0,0.2227097]
[1765786614522,0.01575,89806.0,89803.0,0.23384518]
[1765786614841,0.01575,89806.0,89803.0,0.01113548]
[1765786615250,0.02114498,89807.0,89804.0,0.01113536]
[1765786616088,0.02014498,89807.0,89804.0,0.01113536]
[1765786616512,0.001,89806.0,89804.0,0.23384157]
[1765786616964,0.01113461,89810.0,89807.0,0.01113498]
[1765786618275,0.01213461,89810.0,89807.0,0.01113498]
[1765786619504,0.23382986,89809.0,89805.0,0.01113523]
[1765786619656,0.24283986,89809.0,89805.0,0.01113523]
[1765786620099,0.02014474,89809.0,89805.0,0.01113523]
[1765786620440,0.00901,89809.0,89806.0,0.23383737]
[1765786620592,0.01001,89809.0,89806.0,0.23383737]
[1765786621006,0.002,89809.0,89806.0,0.23383737]
[1765786621224,0.00901,89817.0,89815.0,0.22267981]
[1765786621808,0.25610686,89823.0,89818.0,0.01113362]
[1765786621809,0.011133,89823.0,89818.0,0.01113362]
[1765786622009,0.24280102,89824.0,89821.0,0.01113325]
[1765786622010,0.00901,89824.0,89821.0,0.01113325]
[1765786622234,0.00901,89824.0,89821.0,0.23379832]
[1765786623446,0.01001,89824.0,89821.0,0.23379832]
[1765786624745,0.02114288,89824.0,89820.0,0.01113337]
[1765786624921,0.01001,89824.0,89821.0,0.23379784]
[1765786625298,0.01001,89824.0,89821.0,0.01113325]
[1765786625506,0.02014288,89824.0,89820.0,0.01113337]
[1765786625710,0.011133,89823.0,89820.0,0.01113337]
[1765786626526,0.01113312,89822.0,89819.0,0.0111335]
[1765786627248,0.011133,89823.0,89820.0,0.01113337]
[1765786627635,0.02014288,89824.0,89821.0,0.01113325]
[1765786628379,0.02014288,89824.0,89821.0,0.23379825]
[1765786628380,0.00901,89824.0,89821.0,0.23379825]
[1765786628793,0.00901,89824.0,89822.0,0.22266014]
[1765786629140,0.01113263,89826.0,89821.0,0.23379825]
[1765786629349,0.011133,89823.0,89820.0,0.01113337]
[1765786629553,0.00901,89822.0,89820.0,0.01113337]
[1765786631059,0.0111335,89819.0,89815.0,0.00161287]
[1765786631262,0.23380613,89818.0,89815.0,0.00161287]
[1765786631460,0.22267742,89817.0,89815.0,0.00161287]
[1765786632049,0.24620742,89817.0,89815.0,0.00161287]
[1765786632477,0.24620742,89817.0,89815.0,0.00261287]
[1765786632680,0.24620742,89817.0,89815.0,0.00161287]
[1765786633098,0.24620742,89817.0,89815.0,0.00261287]
[1765786633355,0.03917,89816.0,89815.0,0.001]
[1765786634166,0.01564,89816.0,89815.0,0.001]
[1765786634314,0.23380635,89818.0,89815.0,0.001]
[1765786634492,0.01564,89816.0,89815.0,0.001]
[1765786634697,0.23381394,89815.0,89811.0,0.01113449]
[1765786634896,0.01113424,89813.0,89810.0,0.01113461]
[1765786635744,0.23381394,89815.0,89810.0,0.01113461]
[1765786636367,0.23381394,89815.0,89810.0,0.01213461]
[1765786636537,0.23381394,89815.0,89810.0,0.01113461]
[1765786636942,0.23381394,89815.0,89811.0,0.01113449]
[1765786638606,0.02465,89812.0,89811.0,0.001]
[1765786638984,0.04818,89812.0,89811.0,0.001]
[1765786639824,0.04818,89812.0,89807.0,0.01113498]
[1765786639825,0.01113474,89809.0,89806.0,0.04101881]
[1765786640391,0.01113474,89809.0,89807.0,0.0298837]
[1765786641823,0.01113474,89809.0,89807.0,0.0308837]
[1765786642441,0.01113474,89809.0,89807.0,0.0318837]
[1765786643042,0.02014436,89812.0,89808.0,0.2226973]
[1765786643327,0.02014436,89812.0,89808.0,0.252581]
[1765786643561,0.01113449,89811.0,89808.0,0.0298837]
[1765786643880,0.01113461,89810.0,89807.0,0.04313351]
[1765786644257,0.01113461,89810.0,89808.0,0.0298837]
[1765786644425,0.01113461,89810.0,89808.0,0.0308837]
[1765786644856,0.01113461,89810.0,89808.0,0.0298837]
[1765786645058,0.23382704,89810.0,89808.0,0.0298837]
[1765786645746,0.23382704,89810.0,89808.0,0.0308837]
[1765786646352,0.01564,89809.0,89808.0,0.0308837]
[1765786646561,0.03917,89809.0,89808.0,0.0308837]
[1765786647180,0.03917,89809.0,89808.0,0.001]
[1765786647545,0.03917,89809.0,89807.0,0.00011483]
[1765786647546,0.2226973,89808.0,89807.0,0.00011483]
[1765786647766,0.2627773,89808.0,89807.0,0.00011483]
[1765786649073,0.2627773,89808.0,89807.0,0.00111483]
[1765786656434,1.7676053,89808.0,89807.0,0.00111483]
[1765786656635,1.0873093,89808.0,89807.0,0.00111483]
[1765786659603,1.13512712,89808.0,89807.0,0.00111483]
[1765786659821,1.13512712,89808.0,89807.0,4.83e-06]
[1765786660371,0.22275366,89786.0,89784.0,0.0298837]
[1765786660777,0.22275683,89784.0,89782.0,0.0298837]
[1765786661966,0.02014771,89785.0,89782.0,0.04202179]
[1765786662166,0.00901,89785.0,89782.0,0.01213809]
[1765786662384,0.00901,89791.0,89786.0,0.01113759]
[1765786662791,0.00901,89791.0,89788.0,0.01113734]
[1765786662994,0.01113697,89791.0,89788.0,0.00161287]
[1765786663199,0.22274195,89790.0,89788.0,0.00161287]
[1765786663708,0.00901,89789.0,89788.0,0.00161287]
[1765786664881,0.01001,89789.0,89788.0,0.00161287]
[1765786665329,0.00901,89789.0,89788.0,0.00161287]
[1765786665706,0.01001,89789.0,89788.0,0.00161287]
[1765786666416,0.22276563,89781.0,89778.0,0.0298837]
[1765786666627,0.01113821,89781.0,89777.0,0.01113871]
[1765786666818,0.01113821,89781.0,89777.0,0.01275158]
[1765786667019,0.01001,89789.0,89784.0,0.01113784]
[1765786667247,0.01113734,89788.0,89784.0,0.01113784]
[1765786668023,0.02873746,89787.0,89784.0,0.01113784]
[1765786668228,0.2514873,89787.0,89783.0,0.01113796]
[1765786668434,0.23389223,89785.0,89781.0,0.01113821]
[1765786668936,0.01113796,89783.0,89780.0,0.02363833]
[1765786669522,0.01113784,89784.0,89780.0,0.02363833]
[1765786669942,0.01113784,89784.0,89781.0,0.01113821]
[1765786670141,0.01113771,89785.0,89782.0,0.01113809]
[1765786670559,0.01113759,89786.0,89783.0,0.01113796]
[1765786670699,0.01031615,89786.0,89783.0,0.01113796]
[1765786670909,0.02873746,89787.0,89783.0,0.23389704]
[1765786671133,0.02873746,89787.0,89784.0,0.01113784]
[1765786671573,0.0176,89787.0,89785.0,0.22275435]
[1765786671745,0.0176,89787.0,89784.0,0.01275071]
[1765786671957,0.0176,89787.0,89784.0,0.00161287]
[1765786672827,0.22275187,89786.0,89784.0,0.00161287]
[1765786672986,0.02873746,89787.0,89784.0,0.00161287]
[1765786673572,0.01113746,89787.0,89784.0,0.00161287]
[1765786673768,0.22275187,89786.0,89784.0,0.00161287]
[1765786674299,0.03944,89785.0,89784.0,0.00161287]
[1765786674701,0.01591,89785.0,89784.0,0.00161287]
[1765786675783,0.22275187,89786.0,89784.0,0.00161287]
[1765786676433,0.01113746,89787.0,89784.0,0.00161287]
[1765786676860,0.01113734,89788.0,89785.0,0.01113771]
[1765786678078,0.02014722,89789.0,89786.0,0.01113759]
[1765786678427,0.02014722,89789.0,89787.0,0.22274939]
[1765786678428,0.00901,89789.0,89787.0,0.22274939]
[1765786679549,0.02838256,89809.0,89787.0,0.22274939]
[1765786679550,0.0111356,89802.0,89795.0,0.01113647]
[1765786679756,0.03774536,89804.0,89801.0,0.01113573]
[1765786680177,0.23384547,89803.0,89798.0,0.0111361]
[1765786680377,0.0111356,89802.0,89799.0,0.01113598]
[1765786680581,0.0111356,89802.0,89799.0,0.01125086]
[1765786680787,0.23384834,89802.0,89799.0,0.00011488]
[1765786680992,0.25798834,89802.0,89799.0,0.00011488]
[1765786681200,0.22271714,89800.0,89799.0,0.00011488]
[1765786682015,0.25798785,89802.0,89799.0,0.00011488]
[1765786682169,0.23384785,89802.0,89799.0,0.00011488]
[1765786682380,0.02414,89801.0,89799.0,0.00011488]
[1765786683024,0.003,89802.0,89799.0,0.01125086]
[1765786683224,0.01113548,89803.0,89799.0,0.01125086]
[1765786683432,0.01503,89800.0,89799.0,0.00011488]
[1765786683845,0.03917,89800.0,89799.0,0.00011488]
[1765786685694,0.04017,89800.0,89799.0,0.00011488]
[1765786685906,0.04117,89800.0,89799.0,0.00011488]
[1765786688131,0.01703,89800.0,89799.0,0.00011488]
[1765786688748,0.04117,89800.0,89799.0,0.00011488]
[1765786689360,0.01703,89800.0,89799.0,0.2228345]
[1765786690031,0.002,89800.0,89799.0,0.2228345]
[1765786690241,0.002,89800.0,89799.0,0.2637745]
[1765786691146,0.002,89800.0,89799.0,0.26538737]
[1765786691278,0.002,89800.0,89799.0,0.29527107]
[1765786691478,0.02873436,89812.0,89799.0,0.29527107]
[1765786691680,0.01113461,89810.0,89807.0,0.01113498]
[1765786691890,0.02873436,89812.0,89808.0,0.01113486]
[1765786692088,0.05287436,89812.0,89808.0,0.01113486]
[1765786693063,0.01113449,89811.0,89808.0,0.01113486]
[1765786693214,0.03527449,89811.0,89808.0,0.01113486]
[1765786693419,0.01113461,89810.0,89806.0,0.01113511]
[1765786693620,0.01113461,89810.0,89803.0,0.01113548]
[1765786693621,0.01113511,89806.0,89803.0,0.01113548]
[1765786693872,0.02014498,89807.0,89803.0,0.01113548]
[1765786694077,0.00901,89807.0,89804.0,0.01113536]
[1765786694663,0.00901,89807.0,89805.0,0.22261098]
[1765786695476,0.00901,89807.0,89804.0,0.01113536]
[1765786695660,0.00901,89807.0,89805.0,0.22270474]
[1765786697652,0.03917,89806.0,89805.0,0.22270474]
[1765786697858,0.01503,89806.0,89804.0,0.01113536]
[1765786698072,0.00901,89807.0,89805.0,0.22270474]
[1765786698314,0.00901,89807.0,89804.0,0.01113536]
[1765786698528,0.01503,89805.0,89804.0,0.01113536]
[1765786698719,0.01503,89805.0,89800.0,0.01113585]
[1765786698720,0.02616523,89805.0,89800.0,0.01113585]
[1765786698862,0.01503,89804.0,89803.0,0.2227097]
[1765786699063,0.02404,89804.0,89803.0,0.2227097]
[1765786699279,0.02404,89804.0,89802.0,0.0111356]
[1765786699481,0.01503,89803.0,89800.0,0.01113585]
[1765786699680,0.03917,89803.0,89800.0,0.01113585]
[1765786699884,0.03917,89803.0,89801.0,0.22271466]
[1765786699885,0.01503,89803.0,89801.0,0.22271466]
[1765786700326,0.01503,89803.0,89800.0,0.01113585]
[1765786701040,0.0111356,89802.0,89799.0,0.00172775]
[1765786701364,0.23774714,89800.0,89799.0,0.00011488]
[1765786701711,0.26188714,89800.0,89799.0,0.00011488]
[1765786702909,0.26188714,89800.0,89799.0,0.00111488]
[1765786704300,0.23384336,89805.0,89799.0,0.00111488]
[1765786704301,0.01113672,89810.0,89799.0,0.26638489]
[1765786704506,0.00921,89831.0,89829.0,0.22264524]
[1765786709132,0.01656,89830.0,89828.0,0.01113238]
[1765786709282,0.01656,89830.0,89829.0,0.22264524]
[1765786709894,0.01656,89830.0,89828.0,0.01113238]
[1765786710093,0.01656,89830.0,89829.0,0.22264524]
[1765786710489,0.02769213,89830.0,89821.0,0.01113325]
[1765786710696,0.02769213,89830.0,89826.0,0.01113263]
[1765786710697,0.01656,89830.0,89826.0,0.01113263]
[1765786711122,0.01656,89830.0,89827.0,0.23378271]
[1765786711316,0.00921,89831.0,89828.0,0.01113238]
[1765786711720,0.00921,89831.0,89829.0,0.22264524]
[1765786712278,0.26620246,89831.0,89827.0,0.01113251]
[1765786712488,0.03243,89831.0,89828.0,0.01113238]
[1765786712713,0.00921,89831.0,89828.0,0.01113238]
[1765786713422,0.00921,89831.0,89829.0,0.22264524]
[1765786714565,0.03978,89830.0,89828.0,0.01113238]
[1765786714773,0.01656,89829.0,89828.0,0.01113238]
[1765786715722,0.00921,89831.0,89829.0,0.22264524]
[1765786720509,0.01656,89830.0,89828.0,0.01113238]
[1765786720716,0.22264524,89829.0,89821.0,0.23379753]
[1765786720915,0.03435226,89829.0,89825.0,0.01113275]
[1765786721071,0.01113226,89829.0,89825.0,0.01113275]
[1765786721273,0.02322,89828.0,89825.0,0.01113275]
[1765786721881,0.02322,89828.0,89826.0,0.22265268]
[1765786722287,0.02322,89828.0,89825.0,0.01113275]
[1765786722288,0.01656,89827.0,89825.0,0.01113275]
[1765786722521,0.01286199,89826.0,89825.0,0.01113275]
[1765786722712,0.03608199,89826.0,89825.0,0.22265516]
[1765786722893,0.01286199,89826.0,89825.0,0.22265516]
[1765786723094,0.01113213,89830.0,89826.0,0.01113263]
[1765786723461,0.02322,89829.0,89826.0,0.01113263]
[1765786724106,0.02322,89829.0,89827.0,0.2226502]
[1765786724900,0.01656,89828.0,89827.0,0.2226502]
[1765786725777,0.01656,89828.0,89827.0,0.00011488]
[1765786725937,0.03978,89828.0,89827.0,0.00011488]
[1765786726566,0.03978,89828.0,89827.0,0.22276508]
[1765786726998,0.03978,89828.0,89827.0,0.22376508]
[1765786727770,0.01656,89828.0,89827.0,0.22376508]
[1765786728569,0.00921,89831.0,89828.0,0.01113238]
[1765786728746,0.02322,89830.0,89828.0,0.01113238]
[1765786728951,0.02322,89830.0,89829.0,0.22264524]
[1765786729353,0.0002,89831.0,89829.0,0.24685524]
[1765786729655,0.0002,89831.0,89829.0,0.22264524]
[1765786732901,0.0002,89831.0,89827.0,0.01124739]
[1765786733108,0.0002,89831.0,89829.0,0.22264288]
[1765786733303,0.0002,89831.0,89828.0,0.2337801]
[1765786733508,0.0002,89831.0,89830.0,0.22264276]
[1765786734427,0.0002,89831.0,89828.0,0.2637165]
[1765786734638,0.0002,89831.0,89830.0,0.22264276]
[1765786735047,0.0002,89831.0,89828.0,0.2637165]
[1765786736274,0.0002,89831.0,89830.0,0.22264276]
[1765786737252,0.0002,89831.0,89828.0,0.2637165]
[1765786737452,0.0002,89831.0,89830.0,0.22264276]
[1765786742107,0.0002,89831.0,89830.0,0.29141916]
[1765786742298,0.0002,89831.0,89830.0,0.26309563]
[1765786743310,0.0002,89831.0,89830.0,0.26409563]
[1765786744253,0.0002,89831.0,89830.0,0.32492442]
[1765786745042,0.0002,89831.0,89830.0,0.32292442]
[1765786745242,0.0002,89831.0,89830.0,0.26309563]
[1765786745440,0.0002,89831.0,89830.0,0.26409563]
[1765786745880,0.0002,89831.0,89830.0,0.26309563]
[1765786746309,0.0002,89831.0,89830.0,0.28309563]
[1765786746717,0.0002,89831.0,89830.0,0.27309563]
[1765786746922,0.0002,89831.0,89830.0,0.34392442]
[1765786747071,0.0002,89831.0,89830.0,0.28409563]
[1765786747294,0.0002,89831.0,89830.0,0.34387458]
[1765786747826,0.0002,89831.0,89830.0,0.28409563]
[1765786748250,0.0002,89831.0,89830.0,0.54229128]
[1765786749982,0.0002,89831.0,89830.0,0.48251402]
[1765786750750,0.0002,89831.0,89830.0,0.47151402]
[1765786751160,0.0002,89831.0,89830.0,0.47351402]
[1765786751357,0.0002,89831.0,89830.0,0.48807402]
[1765786751813,0.0002,89831.0,89830.0,0.50007402]
[1765786755236,0.0002,89831.0,89830.0,0.55978568]
[1765786758297,0.0002,89831.0,89830.0,0.50007402]
[1765786762760,0.0002,89831.0,89830.0,0.49687402]
[1765786766227,0.0002,89831.0,89830.0,0.42929563]
[1765786766657,0.0002,89831.0,89830.0,0.5066125]
[1765786767325,0.0002,89831.0,89830.0,0.42929563]
[1765786767520,0.0002,89831.0,89830.0,0.50662662]
[1765786768207,0.0002,89831.0,89830.0,0.44685563]
[1765786771072,0.0002,89831.0,89830.0,0.42929563]